[Event "11th Arad Open 2018"]
[Site "Arad"]
[Date "2018.08.11"]
[Round "8"]
[White "Balla, Tamas-Kristof"]
[Black "Calin, Alexandru"]
[Result "1-0"]
[ECO "C41"]
[WhiteElo "2352"]
[BlackElo "2215"]
[Annotator "NA"]
[PlyCount "75"]
[EventDate "2018.08.05"]
[EventType "swiss"]
[EventCountry "ROU"]
[SourceTitle "playchess.com"]
[Source "ChessBase"]
[SourceQuality "1"]
[TimeControl "40/5400+30:1800+30"]

1. e4 {[%emt 0:06:28]} e5 {[%emt 0:00:31]} 2. Nf3 {[%emt 0:00:10]} d6 {[%emt 0:00:03]} 3. d4 {[%emt 0:00:12]} exd4 {[%emt 0:00:04]} 4. Nxd4 {[%emt 0:00:06]} Nf6 {[%emt 0:00:03]} 5. f3 {[%emt 0:00:12]} Be7 {[%emt 0:00:03]} 6. c4 {[%emt 0:00:10]} O-O {[%emt 0:00:12]} 7. Nc3 {[%emt 0:00:07]} c6 {[%emt 0:02:26]} 8. Be3 {[%emt 0:00:07]} Re8 {[%emt 0:02:16]} 9. Qd2 {[%emt 0:00:56]} Bf8 {[%emt 0:00:21]} 10. O-O-O {[%emt 0:01:58]} a6 {[%emt 0:14:30]} 11. Nf5 {[%emt 0:11:10]} Bxf5 {[%emt 0:23:11]} 12. exf5 {[%emt 0:00:25]} Qa5 {[%emt 0:02:33]} 13. g4 {[%emt 0:02:46]} b5 {[%emt 0:04:58]} 14. Kb1 {[%emt 0:01:42]} bxc4 {[%emt 0:01:00]} 15. Bxc4 {[%emt 0:00:58]} Nfd7 {[%emt 0:08:28]} 16. Bb3 {[%emt 0:14:41]} d5 {[%emt 0:02:13]} 17. Rhe1 {[%emt 0:04:14]} Rc8 {[%emt 0:03:46]} 18. Qf2 {[%emt 0:10:31]} Bb4 {[%emt 0:05:13]} 19. Re2 {[%emt 0:05:40]} Nc5 {[%emt 0:01:17]} 20. Bc2 {[%emt 0:11:34]} Nbd7 {[%emt 0:00:04]} 21. Bd4 {[%emt 0:00:13]} Rab8 {[%emt 0:04:10]} 22. Qe3 {[%emt 0:05:23]} Nb7 {[%emt 0:01:20]} 23. Bxg7 {[%emt 0:11:06]} f6 {[%emt 0:04:11]} 24. Qe6+ {[%emt 0:07:45]} Kxg7 {[%emt 0:00:05]} 25. Qxd7+ {[%emt 0:00:05]} Kh8 {[%emt 0:00:20]} 26. Na4 {[%emt 0:02:31]} Nc5 {[%emt 0:05:11]} 27. Nxc5 {[%emt 0:00:09]} Qxc5 {[%emt 0:00:22]} 28. Qe6 {[%emt 0:00:34]} Rf8 {[%emt 0:01:51]} 29. Bb3 {[%emt 0:01:10]} Qb5 {[%emt 0:06:46]} 30. Rc2 {[%emt 0:00:12]} Rbc8 {[%emt 0:05:25]} 31. Rdc1 {[%emt 0:01:07]} Qd3 {[%emt 0:00:14]} 32. Qe2 {[%emt 0:00:44]} Qxe2 {[%emt 0:00:26]} 33. Rxe2 {[%emt 0:00:04]} d4 {[%emt 0:00:20]} 34. Re6 {[%emt 0:00:11]} d3 {[%emt 0:00:46]} 35. Rcxc6 {[%emt 0:00:13]} Rxc6 {[%emt 0:00:17]} 36. Rxc6 {[%emt 0:00:04]} Re8 {[%emt 0:00:51]} 37. a3 {[%emt 0:00:31]} Be1 {[%emt 0:02:10]} 38. Re6 {[%emt 0:01:16]} 1-0

[Event "11th Arad Open 2018"]
[Site "Arad"]
[Date "2018.08.11"]
[Round "8"]
[White "Ileana, George"]
[Black "Virag, Balint"]
[Result "1-0"]
[ECO "A05"]
[WhiteElo "2324"]
[BlackElo "2137"]
[Annotator "NA"]
[PlyCount "61"]
[EventDate "2018.08.05"]
[EventType "swiss"]
[EventCountry "ROU"]
[SourceTitle "playchess.com"]
[Source "ChessBase"]
[SourceQuality "1"]
[TimeControl "40/5400+30:1800+30"]

1. Nf3 {[%emt 0:00:25]} Nf6 {[%emt 0:00:00]} 2. c4 {[%emt 0:00:11]} g6 {[%emt 0:00:00]} 3. b3 {[%emt 0:00:33]} Bg7 {[%emt 0:00:00]} 4. Bb2 {[%emt 0:00:04]} O-O {[%emt 0:00:13]} 5. e3 {[%emt 0:00:04]} d5 {[%emt 0:00:23]} 6. Be2 {[%emt 0:00:37]} c5 {[%emt 0:00:08]} 7. O-O {[%emt 0:00:25]} Nc6 {[%emt 0:00:42]} 8. cxd5 {[%emt 0:01:07]} Nxd5 {[%emt 0:00:30]} 9. Bxg7 {[%emt 0:00:20]} Kxg7 {[%emt 0:00:02]} 10. d4 {[%emt 0:00:06]} cxd4 {[%emt 0:00:33]} 11. Nxd4 {[%emt 0:00:06]} Nxd4 {[%emt 0:01:06]} 12. Qxd4+ {[%emt 0:00:27]} Nf6 {[%emt 0:00:08]} 13. Qb4 {[%emt 0:00:41]} a5 {[%emt 0:01:23]} 14. Qc3 {[%emt 0:00:29]} Be6 {[%emt 0:00:43]} 15. Na3 {[%emt 0:00:26]} Rc8 {[%emt 0:01:57]} 16. Qb2 {[%emt 0:00:07]} Qb6 {[%emt 0:02:43]} 17. Rac1 {[%emt 0:00:13]} Rfd8 {[%emt 0:05:04]} 18. Bc4 {[%emt 0:01:27]} Bf5 {[%emt 0:01:23]} 19. Rfd1 {[%emt 0:01:56]} Qb4 {[%emt 0:02:39]} 20. f3 {[%emt 0:02:47]} b5 {[%emt 0:06:55]} 21. Rxd8 {[%emt 0:02:56]} Rxd8 {[%emt 0:00:01]} 22. Nxb5 {[%emt 0:00:16]} Rd2 {[%emt 0:01:02]} 23. Qc3 {[%emt 0:00:07]} Qxc3 {[%emt 0:01:10]} 24. Nxc3 {[%emt 0:00:11]} Bc2 {[%emt 0:01:13]} 25. Kf1 {[%emt 0:07:46]} Bd3+ {[%emt 0:04:15]} 26. Ke1 {[%emt 0:01:27]} Rxg2 {[%emt 0:00:06]} 27. Bxd3 {[%emt 0:00:06]} Rxh2 {[%emt 0:00:08]} 28. Rc2 {[%emt 0:00:11]} Rh1+ {[%emt 0:00:25]} 29. Bf1 {[%emt 0:00:53]} Nh5 {[%emt 0:01:21]} 30. Kf2 {[%emt 0:00:21]} Ng3 {[%emt 0:00:04]} 31. Bg2 {[%emt 0:00:15]} 1-0

[Event "11th Arad Open 2018"]
[Site "Arad"]
[Date "2018.08.11"]
[Round "8"]
[White "Banzea, Alexandru-Bogdan"]
[Black "Filip, Lucian-Ioan"]
[Result "1/2-1/2"]
[ECO "C18"]
[WhiteElo "2313"]
[BlackElo "2426"]
[Annotator "NA"]
[PlyCount "62"]
[EventDate "2018.08.05"]
[EventType "swiss"]
[EventCountry "ROU"]
[SourceTitle "playchess.com"]
[Source "ChessBase"]
[SourceQuality "1"]
[TimeControl "40/5400+30:1800+30"]

1. e4 {[%emt 0:06:57]} e6 {[%emt 0:00:00]} 2. d4 {[%emt 0:00:08]} d5 {[%emt 0:00:00]} 3. Nc3 {[%emt 0:00:08]} Bb4 {[%emt 0:00:00]} 4. e5 {[%emt 0:00:07]} c5 {[%emt 0:00:00]} 5. a3 {[%emt 0:00:05]} Bxc3+ {[%emt 0:00:00]} 6. bxc3 {[%emt 0:00:06]} Qc7 {[%emt 0:00:01]} 7. a4 {[%emt 0:02:53]} Ne7 {[%emt 0:01:01]} 8. Nf3 {[%emt 0:00:46]} h6 {[%emt 0:01:19]} 9. Bb5+ {[%emt 0:03:14]} Bd7 {[%emt 0:01:05]} 10. Bd3 {[%emt 0:02:42]} Nbc6 {[%emt 0:00:34]} 11. O-O {[%emt 0:00:48]} cxd4 {[%emt 0:23:39]} 12. cxd4 {[%emt 0:00:52]} Nb4 {[%emt 0:00:01]} 13. Ba3 {[%emt 0:01:41]} Nxd3 {[%emt 0:00:08]} 14. cxd3 {[%emt 0:04:43]} Bc6 {[%emt 0:00:14]} 15. Nh4 {[%emt 0:05:31]} Ng6 {[%emt 0:29:48]} 16. Nxg6 {[%emt 0:23:10]} fxg6 {[%emt 0:00:03]} 17. Re1 {[%emt 0:02:57]} Kf7 {[%emt 0:16:58]} 18. Re3 {[%emt 0:05:20]} Be8 {[%emt 0:06:49]} 19. Bd6 {[%emt 0:10:57]} Qd7 {[%emt 0:00:22]} 20. a5 {[%emt 0:03:56]} Kg8 {[%emt 0:01:54]} 21. h4 {[%emt 0:02:38]} Kh7 {[%emt 0:00:10]} 22. Rb1 {[%emt 0:01:01]} Rc8 {[%emt 0:08:29]} 23. Qb3 {[%emt 0:03:46]} Rc6 {[%emt 0:01:59]} 24. Ree1 {[%emt 0:06:38]} b6 {[%emt 0:00:11]} 25. Qa3 {[%emt 0:00:31]} Qb7 {[%emt 0:00:56]} 26. axb6 {[%emt 0:02:36]} Rxb6 {[%emt 0:01:52]} 27. Ra1 {[%emt 0:00:16]} Bb5 {[%emt 0:01:31]} 28. Bc5 {[%emt 0:01:39]} Ra6 {[%emt 0:00:05]} 29. Qb2 {[%emt 0:01:02]} Rxa1 {[%emt 0:00:04]} 30. Qxa1 {[%emt 0:01:05]} a6 {[%emt 0:01:24]} 31. Qa3 {[%emt 0:02:17]} Rc8 {[%emt 0:00:57]} 1/2-1/2

[Event "11th Arad Open 2018"]
[Site "Arad"]
[Date "2018.08.11"]
[Round "8"]
[White "Trifan, Andrei Ioan"]
[Black "David, Bogdan-Emanuel"]
[Result "1/2-1/2"]
[ECO "B32"]
[WhiteElo "2308"]
[BlackElo "2104"]
[Annotator "NA"]
[PlyCount "78"]
[EventDate "2018.08.05"]
[EventType "swiss"]
[EventCountry "ROU"]
[SourceTitle "playchess.com"]
[Source "ChessBase"]
[SourceQuality "1"]
[TimeControl "40/5400+30:1800+30"]

1. e4 {[%emt 0:00:00]} c5 {[%emt 0:04:11]} 2. Nf3 {[%emt 0:00:07]} Nc6 {[%emt 0:00:07]} 3. d4 {[%emt 0:00:25]} cxd4 {[%emt 0:00:07]} 4. Nxd4 {[%emt 0:00:09]} e5 {[%emt 0:00:06]} 5. Nb5 {[%emt 0:00:50]} d6 {[%emt 0:00:17]} 6. N1c3 {[%emt 0:00:37]} a6 {[%emt 0:00:08]} 7. Na3 {[%emt 0:00:46]} b5 {[%emt 0:00:05]} 8. Nd5 {[%emt 0:00:48]} Nge7 {[%emt 0:00:45]} 9. c4 {[%emt 0:00:46]} Nxd5 {[%emt 0:01:31]} 10. exd5 {[%emt 0:00:51]} Nd4 {[%emt 0:00:19]} 11. cxb5 {[%emt 0:01:19]} Bd7 {[%emt 0:02:01]} 12. Bd3 {[%emt 0:02:29]} axb5 {[%emt 0:01:33]} 13. O-O {[%emt 0:01:38]} Qb8 {[%emt 0:10:42]} 14. Be3 {[%emt 0:17:59]} Nf5 {[%emt 0:04:02]} 15. Qf3 {[%emt 0:09:03]} Nxe3 {[%emt 0:29:01]} 16. fxe3 {[%emt 0:02:18]} f6 {[%emt 0:00:50]} 17. Qh5+ {[%emt 0:05:32]} Ke7 {[%emt 0:00:27]} 18. Nc2 {[%emt 0:04:25]} Ra4 {[%emt 0:02:21]} 19. e4 {[%emt 0:10:00]} g6 {[%emt 0:01:19]} 20. Qf3 {[%emt 0:02:17]} Bg7 {[%emt 0:01:05]} 21. b3 {[%emt 0:01:27]} Qa7+ {[%emt 0:01:53]} 22. Qf2 {[%emt 0:06:18]} Ra5 {[%emt 0:01:26]} 23. Rfd1 {[%emt 0:06:25]} Bh6 {[%emt 0:03:51]} 24. Qxa7 {[%emt 0:02:04]} Rxa7 {[%emt 0:00:01]} 25. Kf2 {[%emt 0:00:23]} Rc8 {[%emt 0:02:07]} 26. h3 {[%emt 0:02:41]} Rc3 {[%emt 0:09:42]} 27. g4 {[%emt 0:02:36]} Bf4 {[%emt 0:01:03]} 28. Nb4 {[%emt 0:01:59]} Ra5 {[%emt 0:01:42]} 29. Rg1 {[%emt 0:01:13]} Kd8 {[%emt 0:01:27]} 30. Ke2 {[%emt 0:04:04]} Kc7 {[%emt 0:02:04]} 31. h4 {[%emt 0:01:54]} g5 {[%emt 0:03:51]} 32. hxg5 {[%emt 0:00:59]} Bxg5 {[%emt 0:00:36]} 33. Nc2 {[%emt 0:01:25]} Kb6 {[%emt 0:01:51]} 34. Ne3 {[%emt 0:02:33]} Ra8 {[%emt 0:01:36]} 35. Rh1 {[%emt 0:01:54]} h6 {[%emt 0:01:10]} 36. Nf5 {[%emt 0:01:17]} Bxf5 {[%emt 0:00:11]} 37. gxf5 {[%emt 0:00:14]} b4 {[%emt 0:02:24]} 38. Rhb1 {[%emt 0:01:33]} Ra3 {[%emt 0:03:38]} 39. Rb2 {[%emt 0:01:52]} Kb7 {[%emt 0:05:29]} 1/2-1/2

[Event "11th Arad Open 2018"]
[Site "Arad"]
[Date "2018.08.11"]
[Round "8"]
[White "Tomici, Stefan"]
[Black "Ungureanu, Sandu"]
[Result "1-0"]
[ECO "A15"]
[WhiteElo "2306"]
[BlackElo "2083"]
[Annotator "NA"]
[PlyCount "111"]
[EventDate "2018.08.05"]
[EventType "swiss"]
[EventCountry "ROU"]
[SourceTitle "playchess.com"]
[Source "ChessBase"]
[SourceQuality "1"]
[TimeControl "40/5400+30:1800+30"]

1. c4 {[%emt 0:02:44]} Nf6 {[%emt 0:00:00]} 2. Nf3 {[%emt 0:00:14]} d5 {[%emt 0:00:00]} 3. g3 {[%emt 0:00:32]} Bf5 {[%emt 0:00:52]} 4. cxd5 {[%emt 0:08:34]} Bxb1 {[%emt 0:04:03]} 5. Qa4+ {[%emt 0:14:15]} Qd7 {[%emt 0:01:11]} 6. Qxd7+ {[%emt 0:00:32]} Nbxd7 {[%emt 0:00:13]} 7. Rxb1 {[%emt 0:00:05]} Nxd5 {[%emt 0:00:18]} 8. Bg2 {[%emt 0:00:17]} c6 {[%emt 0:00:16]} 9. O-O {[%emt 0:01:09]} e6 {[%emt 0:00:25]} 10. d3 {[%emt 0:01:19]} g6 {[%emt 0:00:44]} 11. Bd2 {[%emt 0:02:32]} Bg7 {[%emt 0:00:09]} 12. Rfc1 {[%emt 0:02:49]} N5b6 {[%emt 0:03:42]} 13. Bb4 {[%emt 0:13:37]} Nd5 {[%emt 0:02:33]} 14. Bd2 {[%emt 0:06:02]} N5b6 {[%emt 0:01:46]} 15. Kf1 {[%emt 0:00:15]} h6 {[%emt 0:01:28]} 16. Ne1 {[%emt 0:01:02]} f5 {[%emt 0:03:36]} 17. e3 {[%emt 0:05:36]} Kf7 {[%emt 0:01:38]} 18. Ke2 {[%emt 0:03:09]} g5 {[%emt 0:03:51]} 19. e4 {[%emt 0:01:30]} g4 {[%emt 0:00:55]} 20. Be3 {[%emt 0:08:24]} h5 {[%emt 0:01:20]} 21. h4 {[%emt 0:00:40]} Bh6 {[%emt 0:00:21]} 22. Nc2 {[%emt 0:02:44]} Bxe3 {[%emt 0:02:22]} 23. Nxe3 {[%emt 0:01:34]} Kg6 {[%emt 0:02:21]} 24. b4 {[%emt 0:07:09]} a6 {[%emt 0:00:42]} 25. f4 {[%emt 0:03:10]} gxf3+ {[%emt 0:02:25]} 26. Bxf3 {[%emt 0:00:14]} Ne5 {[%emt 0:00:34]} 27. exf5+ {[%emt 0:03:23]} exf5 {[%emt 0:00:56]} 28. Ng2 {[%emt 0:00:32]} Nxf3 {[%emt 0:05:34]} 29. Nf4+ {[%emt 0:00:07]} Kh6 {[%emt 0:02:18]} 30. Kxf3 {[%emt 0:00:08]} Nd7 {[%emt 0:00:27]} 31. d4 {[%emt 0:05:51]} Rae8 {[%emt 0:00:36]} 32. Re1 {[%emt 0:01:45]} Nf6 {[%emt 0:01:36]} 33. Re5 {[%emt 0:01:39]} Rxe5 {[%emt 0:00:04]} 34. dxe5 {[%emt 0:00:07]} Ng4 {[%emt 0:01:55]} 35. e6 {[%emt 0:00:35]} Ne5+ {[%emt 0:00:27]} 36. Ke3 {[%emt 0:00:39]} Rd8 {[%emt 0:02:14]} 37. Rc1 {[%emt 0:00:47]} Ng6 {[%emt 0:02:24]} 38. a3 {[%emt 0:02:01]} Re8 {[%emt 0:00:06]} 39. Re1 {[%emt 0:00:42]} Rd8 {[%emt 0:03:04]} 40. Re2 {[%emt 0:00:00]} Ne7 {[%emt 0:00:00]} 41. Rd2 {[%emt 0:21:01]} Rxd2 {[%emt 0:20:46]} 42. Kxd2 {[%emt 0:00:28]} Ng8 {[%emt 0:01:19]} 43. Ke3 {[%emt 0:00:42]} Kg7 {[%emt 0:01:36]} 44. Nxh5+ {[%emt 0:00:33]} Kf8 {[%emt 0:00:07]} 45. Kf4 {[%emt 0:00:26]} Ke7 {[%emt 0:00:38]} 46. Kxf5 {[%emt 0:01:41]} b6 {[%emt 0:00:37]} 47. Nf4 {[%emt 0:01:00]} a5 {[%emt 0:00:24]} 48. bxa5 {[%emt 0:00:41]} bxa5 {[%emt 0:00:04]} 49. Ke5 {[%emt 0:00:10]} Nh6 {[%emt 0:00:16]} 50. Ng6+ {[%emt 0:00:10]} Ke8 {[%emt 0:00:06]} 51. h5 {[%emt 0:00:06]} a4 {[%emt 0:00:13]} 52. Kd6 {[%emt 0:01:31]} Nf5+ {[%emt 0:00:20]} 53. Kxc6 {[%emt 0:00:05]} Ng7 {[%emt 0:00:21]} 54. h6 {[%emt 0:01:12]} Nxe6 {[%emt 0:00:05]} 55. h7 {[%emt 0:00:04]} Nd8+ {[%emt 0:00:09]} 56. Kb5 {[%emt 0:00:07]} 1-0

[Event "11th Arad Open 2018"]
[Site "Arad"]
[Date "2018.08.11"]
[Round "8"]
[White "Velickovic, Sasa"]
[Black "Macovei, Andrei"]
[Result "1-0"]
[ECO "B18"]
[WhiteElo "2290"]
[BlackElo "2394"]
[Annotator "NA"]
[PlyCount "119"]
[EventDate "2018.08.05"]
[EventType "swiss"]
[EventCountry "ROU"]
[SourceTitle "playchess.com"]
[Source "ChessBase"]
[SourceQuality "1"]
[TimeControl "40/5400+30:1800+30"]

1. e4 {[%emt 0:00:00]} c6 {[%emt 0:00:10]} 2. d4 {[%emt 0:00:36]} d5 {[%emt 0:00:05]} 3. Nd2 {[%emt 0:00:25]} dxe4 {[%emt 0:01:17]} 4. Nxe4 {[%emt 0:00:11]} Bf5 {[%emt 0:00:03]} 5. Nc5 {[%emt 0:00:35]} Nd7 {[%emt 0:03:13]} 6. Nxd7 {[%emt 0:06:38]} Qxd7 {[%emt 0:04:04]} 7. Nf3 {[%emt 0:00:09]} e6 {[%emt 0:00:47]} 8. Be2 {[%emt 0:09:37]} Nf6 {[%emt 0:05:50]} 9. Ne5 {[%emt 0:13:39]} Qd5 {[%emt 0:15:21]} 10. O-O {[%emt 0:00:39]} Rd8 {[%emt 0:01:07]} 11. c3 {[%emt 0:01:31]} h6 {[%emt 0:03:33]} 12. Re1 {[%emt 0:07:03]} Be7 {[%emt 0:02:53]} 13. Bf4 {[%emt 0:02:46]} O-O {[%emt 0:07:07]} 14. Qa4 {[%emt 0:02:12]} Ra8 {[%emt 0:00:58]} 15. Bf3 {[%emt 0:03:28]} Qd8 {[%emt 0:00:32]} 16. Qb3 {[%emt 0:00:41]} Qb6 {[%emt 0:05:47]} 17. Nc4 {[%emt 0:01:49]} Qxb3 {[%emt 0:08:11]} 18. axb3 {[%emt 0:00:09]} Rfd8 {[%emt 0:00:10]} 19. Bc7 {[%emt 0:03:24]} Rdc8 {[%emt 0:01:03]} 20. Bg3 {[%emt 0:00:09]} Bg4 {[%emt 0:02:13]} 21. Bxg4 {[%emt 0:03:51]} Nxg4 {[%emt 0:00:04]} 22. h3 {[%emt 0:00:14]} Nf6 {[%emt 0:00:27]} 23. Ra2 {[%emt 0:01:44]} b5 {[%emt 0:09:35]} 24. Ne5 {[%emt 0:08:41]} c5 {[%emt 0:01:34]} 25. dxc5 {[%emt 0:00:09]} Bxc5 {[%emt 0:00:23]} 26. b4 {[%emt 0:00:06]} Bb6 {[%emt 0:01:09]} 27. Nf3 {[%emt 0:07:23]} Rd8 {[%emt 0:08:05]} 28. Be5 {[%emt 0:00:47]} Nd5 {[%emt 0:00:06]} 29. Rea1 {[%emt 0:05:14]} Rac8 {[%emt 0:05:51]} 30. Ra3 {[%emt 0:01:27]} Rc4 {[%emt 0:02:31]} 31. Rb3 {[%emt 0:07:08]} Nf4 {[%emt 0:04:09]} 32. Kf1 {[%emt 0:00:06]} Nd3 {[%emt 0:00:58]} 33. Bd4 {[%emt 0:00:25]} Rd5 {[%emt 0:04:06]} 34. Bxb6 {[%emt 0:01:19]} axb6 {[%emt 0:00:01]} 35. Rd1 {[%emt 0:04:34]} Rf4 {[%emt 0:01:22]} 36. Rd2 {[%emt 0:00:11]} Re4 {[%emt 0:01:35]} 37. g3 {[%emt 0:01:47]} g5 {[%emt 0:00:35]} 38. Ra3 {[%emt 0:00:10]} Kg7 {[%emt 0:01:21]} 39. Ra1 {[%emt 0:00:07]} g4 {[%emt 0:00:41]} 40. hxg4 {[%emt 0:00:00]} Ne5 {[%emt 0:00:00]} 41. Rxd5 {[%emt 0:15:49]} exd5 {[%emt 0:15:49]} 42. Nxe5 {[%emt 0:00:22]} Rxe5 {[%emt 0:00:00]} 43. Rd1 {[%emt 0:01:44]} Rg5 {[%emt 0:01:46]} 44. Rd4 {[%emt 0:01:48]} Kf6 {[%emt 0:01:51]} 45. f3 {[%emt 0:03:30]} Ke6 {[%emt 0:00:40]} 46. Kf2 {[%emt 0:00:10]} f6 {[%emt 0:01:05]} 47. Rd1 {[%emt 0:01:47]} h5 {[%emt 0:00:25]} 48. Re1+ {[%emt 0:00:08]} Kd7 {[%emt 0:01:23]} 49. gxh5 {[%emt 0:00:09]} Rxh5 {[%emt 0:00:01]} 50. Kg2 {[%emt 0:00:07]} Rh8 {[%emt 0:01:08]} 51. g4 {[%emt 0:00:12]} Ra8 {[%emt 0:05:33]} 52. Kg3 {[%emt 0:00:13]} Ra2 {[%emt 0:00:03]} 53. Re2 {[%emt 0:00:10]} Ra1 {[%emt 0:00:46]} 54. Kf4 {[%emt 0:01:54]} Rf1 {[%emt 0:01:12]} 55. Re3 {[%emt 0:00:21]} Rd1 {[%emt 0:00:12]} 56. Kf5 {[%emt 0:00:28]} d4 {[%emt 0:00:01]} 57. cxd4 {[%emt 0:00:15]} Rxd4 {[%emt 0:00:02]} 58. Kxf6 {[%emt 0:00:22]} Rxb4 {[%emt 0:00:03]} 59. Rd3+ {[%emt 0:01:20]} Ke8 {[%emt 0:00:09]} 60. b3 1-0

[Event "11th Arad Open 2018"]
[Site "Arad"]
[Date "2018.08.11"]
[Round "8"]
[White "Cerbulenco, Liviu"]
[Black "Leszko, Bence"]
[Result "1-0"]
[ECO "C07"]
[WhiteElo "2287"]
[BlackElo "2011"]
[Annotator "NA"]
[PlyCount "63"]
[EventDate "2018.08.05"]
[EventType "swiss"]
[EventCountry "ROU"]
[SourceTitle "playchess.com"]
[Source "ChessBase"]
[SourceQuality "1"]
[TimeControl "40/5400+30:1800+30"]

1. e4 {[%emt 0:00:01]} e6 {[%emt 0:00:30]} 2. d4 {[%emt 0:00:14]} d5 {[%emt 0:00:11]} 3. Nd2 {[%emt 0:00:07]} c5 {[%emt 0:01:18]} 4. exd5 {[%emt 0:00:05]} Qxd5 {[%emt 0:00:18]} 5. Ngf3 {[%emt 0:00:09]} cxd4 {[%emt 0:00:08]} 6. Bc4 {[%emt 0:00:05]} Qd7 {[%emt 0:00:18]} 7. O-O {[%emt 0:00:14]} Nc6 {[%emt 0:00:04]} 8. Nb3 {[%emt 0:00:06]} a6 {[%emt 0:00:04]} 9. Nbxd4 {[%emt 0:05:32]} Nxd4 {[%emt 0:00:15]} 10. Qxd4 {[%emt 0:00:06]} Qxd4 {[%emt 0:00:06]} 11. Nxd4 {[%emt 0:00:07]} b5 {[%emt 0:00:49]} 12. Be2 {[%emt 0:00:46]} Bb7 {[%emt 0:00:08]} 13. Bf4 {[%emt 0:02:04]} Nf6 {[%emt 0:06:42]} 14. c3 {[%emt 0:00:11]} Nd7 {[%emt 0:02:52]} 15. Rfe1 {[%emt 0:11:23]} Be7 {[%emt 0:02:51]} 16. Rad1 {[%emt 0:11:22]} Nc5 {[%emt 0:07:06]} 17. Bf1 {[%emt 0:01:29]} Rd8 {[%emt 0:10:38]} 18. Nxb5 {[%emt 0:28:33]} axb5 {[%emt 0:02:25]} 19. Bxb5+ {[%emt 0:00:06]} Kf8 {[%emt 0:01:37]} 20. Rxd8+ {[%emt 0:00:05]} Bxd8 {[%emt 0:00:05]} 21. Rd1 {[%emt 0:00:20]} Be7 {[%emt 0:00:50]} 22. b4 {[%emt 0:12:53]} Ne4 {[%emt 0:00:12]} 23. Rd7 {[%emt 0:00:18]} Bd5 {[%emt 0:02:53]} 24. c4 {[%emt 0:01:40]} g5 {[%emt 0:13:45]} 25. Be3 {[%emt 0:05:31]} Nf6 {[%emt 0:13:49]} 26. Ra7 {[%emt 0:01:45]} Be4 {[%emt 0:01:10]} 27. f3 {[%emt 0:03:09]} Bd3 {[%emt 0:04:14]} 28. Bd4 {[%emt 0:02:07]} Bd8 {[%emt 0:01:32]} 29. a4 {[%emt 0:01:31]} Kg7 {[%emt 0:02:20]} 30. a5 {[%emt 0:03:11]} Kg6 {[%emt 0:01:34]} 31. Rb7 {[%emt 0:00:09]} g4 {[%emt 0:01:30]} 32. a6 1-0

[Event "11th Arad Open 2018"]
[Site "Arad"]
[Date "2018.08.11"]
[Round "8"]
[White "Pisu, Robert-Daniel"]
[Black "Visanescu, Daria-Ioana"]
[Result "1/2-1/2"]
[ECO "D00"]
[WhiteElo "2282"]
[BlackElo "2075"]
[Annotator "NA"]
[PlyCount "78"]
[EventDate "2018.08.05"]
[EventType "swiss"]
[EventCountry "ROU"]
[SourceTitle "playchess.com"]
[Source "ChessBase"]
[SourceQuality "1"]
[TimeControl "40/5400+30:1800+30"]

1. d4 {[%emt 0:00:00]} d5 {[%emt 0:00:00]} 2. Bf4 {[%emt 0:00:00]} Nf6 {[%emt 0:01:04]} 3. e3 {[%emt 0:00:00]} Bf5 {[%emt 0:00:55]} 4. c4 {[%emt 0:04:28]} c6 {[%emt 0:09:27]} 5. Nc3 {[%emt 0:02:56]} dxc4 {[%emt 0:06:54]} 6. Bxc4 {[%emt 0:02:06]} e6 {[%emt 0:00:56]} 7. Nge2 {[%emt 0:04:31]} Bb4 {[%emt 0:15:47]} 8. O-O {[%emt 0:05:16]} O-O {[%emt 0:02:18]} 9. a3 {[%emt 0:10:00]} Bxc3 {[%emt 0:04:28]} 10. Nxc3 {[%emt 0:00:31]} Nd5 {[%emt 0:00:23]} 11. Bg3 {[%emt 0:01:03]} Nd7 {[%emt 0:03:58]} 12. Qe2 {[%emt 0:14:40]} N7b6 {[%emt 0:12:09]} 13. Bb3 {[%emt 0:04:10]} Bg6 {[%emt 0:03:16]} 14. e4 {[%emt 0:09:49]} Nxc3 {[%emt 0:00:17]} 15. bxc3 {[%emt 0:00:03]} Qe7 {[%emt 0:00:10]} 16. f4 {[%emt 0:03:59]} c5 {[%emt 0:01:53]} 17. Qf3 {[%emt 0:02:31]} c4 {[%emt 0:00:23]} 18. Bc2 {[%emt 0:00:39]} f5 {[%emt 0:00:16]} 19. Rfe1 {[%emt 0:01:56]} fxe4 {[%emt 0:03:08]} 20. Bxe4 {[%emt 0:01:51]} Bxe4 {[%emt 0:00:45]} 21. Rxe4 {[%emt 0:01:19]} Rae8 {[%emt 0:00:24]} 22. a4 {[%emt 0:04:12]} Nd5 {[%emt 0:01:03]} 23. Rae1 {[%emt 0:04:29]} Qd7 {[%emt 0:01:12]} 24. Re5 {[%emt 0:01:51]} g6 {[%emt 0:02:02]} 25. h4 {[%emt 0:05:54]} Rf5 {[%emt 0:10:43]} 26. h5 {[%emt 0:00:16]} Kf7 {[%emt 0:03:48]} 27. hxg6+ {[%emt 0:00:46]} hxg6 {[%emt 0:00:01]} 28. Rxf5+ {[%emt 0:03:31]} exf5 {[%emt 0:02:36]} 29. Rxe8 {[%emt 0:00:10]} Kxe8 {[%emt 0:00:06]} 30. Qe2+ {[%emt 0:00:04]} Qe7 {[%emt 0:00:09]} 31. Qxc4 {[%emt 0:00:06]} Qe3+ {[%emt 0:00:46]} 32. Kh2 {[%emt 0:00:08]} Nf6 {[%emt 0:01:37]} 33. Qc8+ {[%emt 0:01:08]} Kf7 {[%emt 0:00:05]} 34. Qxb7+ {[%emt 0:00:11]} Kg8 {[%emt 0:00:32]} 35. Qb8+ {[%emt 0:07:57]} Kh7 {[%emt 0:01:18]} 36. Qf8 {[%emt 0:02:19]} Ng4+ {[%emt 0:06:12]} 37. Kh3 {[%emt 0:00:05]} Nf2+ {[%emt 0:04:00]} 38. Kh2 {[%emt 0:00:54]} Ng4+ {[%emt 0:01:00]} 39. Kh3 {[%emt 0:00:04]} Nf2+ {[%emt 0:00:35]} 1/2-1/2

[Event "11th Arad Open 2018"]
[Site "Arad"]
[Date "2018.08.11"]
[Round "8"]
[White "Gilea, Lucian"]
[Black "Soltanici, Ruslan"]
[Result "1/2-1/2"]
[ECO "A46"]
[WhiteElo "2279"]
[BlackElo "2383"]
[Annotator "NA"]
[PlyCount "25"]
[EventDate "2018.08.05"]
[EventType "swiss"]
[EventCountry "ROU"]
[SourceTitle "playchess.com"]
[Source "ChessBase"]
[SourceQuality "1"]
[TimeControl "40/5400+30:1800+30"]

1. d4 {[%emt 0:00:00]} Nf6 {[%emt 0:00:00]} 2. Nf3 {[%emt 0:00:00]} e6 {[%emt 0:00:23]} 3. Bg5 {[%emt 0:00:24]} c5 {[%emt 0:03:39]} 4. c3 {[%emt 0:00:15]} d5 {[%emt 0:03:06]} 5. e3 {[%emt 0:00:50]} Qb6 {[%emt 0:00:38]} 6. Qb3 {[%emt 0:02:05]} Nc6 {[%emt 0:04:15]} 7. Nbd2 {[%emt 0:00:13]} Bd6 {[%emt 0:13:48]} 8. dxc5 {[%emt 0:24:59]} Bxc5 {[%emt 0:01:41]} 9. Rd1 {[%emt 0:00:08]} Qxb3 {[%emt 0:27:05]} 10. Nxb3 {[%emt 0:02:24]} Be7 {[%emt 0:03:53]} 11. Nbd4 {[%emt 0:04:35]} h6 {[%emt 0:03:58]} 12. Bf4 {[%emt 0:04:38]} Nh5 {[%emt 0:06:55]} 13. Bc7 {[%emt 0:06:12]} 1/2-1/2